[Event "*** SCC Grand Prix: Titled Tuesday Blitz"]
[Site "Chess.com"]
[Date "2020.09.29"]
[Round "2"]
[White "FLamps8"]
[Black "DenLaz"]
[Result "0-1"]
[WhiteElo "2508"]
[BlackElo "2808"]
[TimeControl "180+1"]
[EndTime "10:19:31 PDT"]
[Termination "DenLaz won by checkmate"]

1. d4 {[%clk 0:02:57.7]} 1... d5 {[%clk 0:02:59.7]} 2. c4 {[%clk 0:02:56.5]}
2... e6 {[%clk 0:03:00.1]} 3. Nc3 {[%clk 0:02:55.3]} 3... a6 {[%clk 0:02:58]} 4.
cxd5 {[%clk 0:02:54.7]} 4... exd5 {[%clk 0:02:58.9]} 5. Bf4 {[%clk 0:02:54.1]}
5... c6 {[%clk 0:02:54.6]} 6. e3 {[%clk 0:02:50]} 6... Bd6 {[%clk 0:02:54]} 7.
Bg3 {[%clk 0:02:46.9]} 7... Ne7 {[%clk 0:02:53.7]} 8. Bd3 {[%clk 0:02:46]} 8...
O-O {[%clk 0:02:53.3]} 9. Nf3 {[%clk 0:02:42.7]} 9... Bf5 {[%clk 0:02:52.6]} 10.
Qc2 {[%clk 0:02:40.7]} 10... Bg6 {[%clk 0:02:41.2]} 11. Ne5 {[%clk 0:02:38.9]}
11... Re8 {[%clk 0:02:32.5]} 12. Nxg6 {[%clk 0:02:38]} 12... Nxg6 {[%clk
0:02:33.4]} 13. O-O {[%clk 0:02:36.9]} 13... Bxg3 {[%clk 0:02:32.4]} 14. hxg3
{[%clk 0:02:37.8]} 14... Nd7 {[%clk 0:02:32.5]} 15. b4 {[%clk 0:02:37.3]} 15...
Qe7 {[%clk 0:02:31.9]} 16. a4 {[%clk 0:02:33.9]} 16... b5 {[%clk 0:02:31.4]} 17.
a5 {[%clk 0:02:33.2]} 17... Nf6 {[%clk 0:02:29.9]} 18. Na2 {[%clk 0:02:27]}
18... Rac8 {[%clk 0:02:28.3]} 19. Rac1 {[%clk 0:02:26.9]} 19... Red8 {[%clk
0:02:14.3]} 20. Qc5 {[%clk 0:02:26.1]} 20... Qb7 {[%clk 0:02:04.5]} 21. Bf5
{[%clk 0:02:11.4]} 21... Rc7 {[%clk 0:02:03.7]} 22. Qb6 {[%clk 0:02:04.1]} 22...
Ne7 {[%clk 0:02:02.9]} 23. Qxb7 {[%clk 0:01:53.4]} 23... Rxb7 {[%clk 0:02:03.8]}
24. Bd3 {[%clk 0:01:53.7]} 24... Ne8 {[%clk 0:02:03.2]} 25. Rc2 {[%clk
0:01:49.7]} 25... Nd6 {[%clk 0:02:03.2]} 26. Nc1 {[%clk 0:01:50.3]} 26... Nc4
{[%clk 0:02:01.5]} 27. Nb3 {[%clk 0:01:50.1]} 27... Nc8 {[%clk 0:01:49.6]} 28.
Nc5 {[%clk 0:01:50.1]} 28... Ra7 {[%clk 0:01:50.2]} 29. e4 {[%clk 0:01:46.3]}
29... dxe4 {[%clk 0:01:37.3]} 30. Bxc4 {[%clk 0:01:04.5]} 30... bxc4 {[%clk
0:01:35.8]} 31. Rxc4 {[%clk 0:01:00.1]} 31... Nd6 {[%clk 0:01:34.6]} 32. Rcc1
{[%clk 0:00:58.2]} 32... f5 {[%clk 0:01:33.8]} 33. Rfd1 {[%clk 0:00:54]} 33...
Kf7 {[%clk 0:01:32.3]} 34. d5 {[%clk 0:00:53.2]} 34... cxd5 {[%clk 0:01:16.8]}
35. Rxd5 {[%clk 0:00:54.1]} 35... Ke7 {[%clk 0:01:17.4]} 36. Rcd1 {[%clk
0:00:48.9]} 36... Nf7 {[%clk 0:01:15.2]} 37. Rxd8 {[%clk 0:00:39.9]} 37... Nxd8
{[%clk 0:01:16.1]} 38. g4 {[%clk 0:00:25.1]} 38... fxg4 {[%clk 0:01:10.7]} 39.
Nxe4 {[%clk 0:00:24]} 39... Nc6 {[%clk 0:01:11.4]} 40. Rb1 {[%clk 0:00:16.6]}
40... Rb7 {[%clk 0:01:05.2]} 41. Nc3 {[%clk 0:00:12.5]} 41... Ke6 {[%clk
0:00:55.3]} 42. b5 {[%clk 0:00:12.8]} 42... axb5 {[%clk 0:00:54.6]} 43. Nxb5
{[%clk 0:00:10.8]} 43... Nxa5 {[%clk 0:00:52.2]} 44. Nd4+ {[%clk 0:00:09.9]}
44... Ke5 {[%clk 0:00:49]} 45. Nc6+ {[%clk 0:00:06.6]} 45... Kf5 {[%clk
0:00:44.9]} 46. Rxb7 {[%clk 0:00:05.9]} 46... Nxb7 {[%clk 0:00:45.8]} 47. g3
{[%clk 0:00:05.4]} 47... Ke4 {[%clk 0:00:43.7]} 48. Kg2 {[%clk 0:00:05.5]} 48...
Nd6 {[%clk 0:00:44.3]} 49. Ne7 {[%clk 0:00:04.9]} 49... h5 {[%clk 0:00:42.3]}
50. Ng6 {[%clk 0:00:04.5]} 50... Kf5 {[%clk 0:00:40.9]} 51. Nf4 {[%clk
0:00:04.4]} 51... g6 {[%clk 0:00:41.5]} 52. Ne2 {[%clk 0:00:04.2]} 52... Ke5
{[%clk 0:00:41]} 53. Nf4 {[%clk 0:00:03.7]} 53... Kf6 {[%clk 0:00:41.4]} 54.
Nd5+ {[%clk 0:00:03.3]} 54... Kf5 {[%clk 0:00:39.9]} 55. Nf4 {[%clk 0:00:04.2]}
55... Ne4 {[%clk 0:00:38.8]} 56. Nd3 {[%clk 0:00:03.9]} 56... g5 {[%clk
0:00:39]} 57. Ne1 {[%clk 0:00:03.4]} 57... Nc5 {[%clk 0:00:37.7]} 58. Nc2 {[%clk
0:00:03.2]} 58... Ke4 {[%clk 0:00:38.1]} 59. Ne3 {[%clk 0:00:03]} 59... Nd3
{[%clk 0:00:38.6]} 60. Nc4 {[%clk 0:00:02.7]} 60... Kd5 {[%clk 0:00:30.7]} 61.
Ne3+ {[%clk 0:00:02.6]} 61... Ke6 {[%clk 0:00:31]} 62. Nc2 {[%clk 0:00:02.5]}
62... Ke5 {[%clk 0:00:30.7]} 63. Ne3 {[%clk 0:00:02.9]} 63... Nb2 {[%clk
0:00:29.1]} 64. Nc2 {[%clk 0:00:02.9]} 64... Nc4 {[%clk 0:00:29.4]} 65. Ne1
{[%clk 0:00:02.5]} 65... Ke4 {[%clk 0:00:29.5]} 66. Nc2 {[%clk 0:00:02.7]} 66...
h4 {[%clk 0:00:27.7]} 67. Ne1 {[%clk 0:00:02.6]} 67... Ne5 {[%clk 0:00:23.5]}
68. gxh4 {[%clk 0:00:02.4]} 68... gxh4 {[%clk 0:00:24.4]} 69. Kh2 {[%clk
0:00:02.6]} 69... Nd3 {[%clk 0:00:23]} 70. Ng2 {[%clk 0:00:02.3]} 70... h3
{[%clk 0:00:18.9]} 71. Ne3 {[%clk 0:00:02]} 71... Kf3 {[%clk 0:00:19.1]} 72. Nf5
{[%clk 0:00:01.5]} 72... Nxf2 {[%clk 0:00:16.7]} 73. Nd4+ {[%clk 0:00:01.9]}
73... Kf4 {[%clk 0:00:16.9]} 74. Ne2+ {[%clk 0:00:02.3]} 74... Ke3 {[%clk
0:00:16.3]} 75. Ng3 {[%clk 0:00:02.6]} 75... Ne4 {[%clk 0:00:16.4]} 76. Nf5+
{[%clk 0:00:02.4]} 76... Kf2 {[%clk 0:00:15.5]} 77. Nh4 {[%clk 0:00:01.8]} 77...
Ng5 {[%clk 0:00:13.9]} 78. Nf5 {[%clk 0:00:01.7]} 78... Kf3 {[%clk 0:00:10.5]}
79. Nh4+ {[%clk 0:00:01.2]} 79... Kf4 {[%clk 0:00:10.9]} 80. Ng6+ {[%clk
0:00:01.5]} 80... Ke3 {[%clk 0:00:10.4]} 81. Nh4 {[%clk 0:00:02.4]} 81... Kf2
{[%clk 0:00:10.1]} 82. Nf5 {[%clk 0:00:02.3]} 82... Nf3+ {[%clk 0:00:08.4]} 83.
Kh1 {[%clk 0:00:02.3]} 83... Nd4 {[%clk 0:00:05.8]} 84. Nxd4 {[%clk 0:00:01.6]}
84... g3 {[%clk 0:00:06]} 85. Ne2 {[%clk 0:00:01.9]} 85... Kxe2 {[%clk
0:00:06.2]} 86. Kg1 {[%clk 0:00:02.8]} 86... Kf3 {[%clk 0:00:04.4]} 87. Kh1
{[%clk 0:00:03.7]} 87... g2+ {[%clk 0:00:04.2]} 88. Kg1 {[%clk 0:00:04.6]} 88...
h2+ {[%clk 0:00:04.1]} 89. Kxh2 {[%clk 0:00:04.9]} 89... Kf2 {[%clk 0:00:05]}
90. Kh3 {[%clk 0:00:05.8]} 90... g1=Q {[%clk 0:00:05.6]} 91. Kh4 {[%clk
0:00:06.7]} 91... Qg6 {[%clk 0:00:05.7]} 92. Kh3 {[%clk 0:00:07.5]} 92... Qg3#
{[%clk 0:00:06.5]} 0-1

[Event "*** SCC Grand Prix: Titled Tuesday Blitz"]
[Site "Chess.com"]
[Date "2020.09.29"]
[Round "2"]
[White "youngKID"]
[Black "anasta10"]
[Result "1/2-1/2"]
[WhiteElo "2769"]
[BlackElo "2505"]
[TimeControl "180+1"]
[EndTime "10:19:33 PDT"]
[Termination "Game drawn - insufficient material"]

1. Nf3 {[%clk 0:03:00.9]} 1... Nf6 {[%clk 0:02:50.1]} 2. d4 {[%clk 0:03:01]}
2... g6 {[%clk 0:02:49.3]} 3. Bg5 {[%clk 0:03:00.3]} 3... Bg7 {[%clk 0:02:49.4]}
4. Nbd2 {[%clk 0:03:00.4]} 4... d5 {[%clk 0:02:48.9]} 5. e3 {[%clk 0:02:59]}
5... O-O {[%clk 0:02:48.8]} 6. Bd3 {[%clk 0:02:59.2]} 6... c5 {[%clk 0:02:49.1]}
7. c3 {[%clk 0:02:59.6]} 7... Nc6 {[%clk 0:02:49.3]} 8. O-O {[%clk 0:02:59.1]}
8... cxd4 {[%clk 0:02:49.1]} 9. exd4 {[%clk 0:02:58.9]} 9... Bf5 {[%clk
0:02:44.1]} 10. Bxf5 {[%clk 0:02:57.3]} 10... gxf5 {[%clk 0:02:44.7]} 11. Bxf6
{[%clk 0:02:57.6]} 11... Bxf6 {[%clk 0:02:43.5]} 12. Re1 {[%clk 0:02:57.9]}
12... e6 {[%clk 0:02:43.3]} 13. Nb3 {[%clk 0:02:46.9]} 13... b6 {[%clk
0:02:38.3]} 14. Nc1 {[%clk 0:02:46.6]} 14... Qc7 {[%clk 0:02:33.2]} 15. Nd3
{[%clk 0:02:46.6]} 15... Kh8 {[%clk 0:02:29.3]} 16. Nfe5 {[%clk 0:02:33.5]}
16... Nxe5 {[%clk 0:02:28]} 17. Nxe5 {[%clk 0:02:31]} 17... Bxe5 {[%clk
0:02:27.6]} 18. Rxe5 {[%clk 0:02:30.9]} 18... Rg8 {[%clk 0:02:26]} 19. Qf3
{[%clk 0:02:30]} 19... Rg6 {[%clk 0:02:22.9]} 20. g3 {[%clk 0:02:25.3]} 20...
Rag8 {[%clk 0:02:22]} 21. b3 {[%clk 0:02:09.2]} 21... Rg4 {[%clk 0:02:19.6]} 22.
c4 {[%clk 0:01:32.2]} 22... dxc4 {[%clk 0:01:41.9]} 23. Qc3 {[%clk 0:01:23.7]}
23... Qd8 {[%clk 0:01:27.8]} 24. d5 {[%clk 0:01:13.6]} 24... Qf6 {[%clk
0:01:23.8]} 25. dxe6 {[%clk 0:01:02.8]} 25... fxe6 {[%clk 0:01:20.4]} 26. Rae1
{[%clk 0:01:00]} 26... cxb3 {[%clk 0:01:05.7]} 27. Qxb3 {[%clk 0:00:59]} 27...
f4 {[%clk 0:00:48.2]} 28. Rxe6 {[%clk 0:00:58]} 28... Qd4 {[%clk 0:00:39.2]} 29.
R6e4 {[%clk 0:00:51.7]} 29... Qf6 {[%clk 0:00:38.8]} 30. Qf3 {[%clk 0:00:42.2]}
30... a5 {[%clk 0:00:10.8]} 31. Kh1 {[%clk 0:00:31.4]} 31... b5 {[%clk
0:00:10.4]} 32. Re6 {[%clk 0:00:26.3]} 32... Qd4 {[%clk 0:00:10.3]} 33. Re8
{[%clk 0:00:24.3]} 33... fxg3 {[%clk 0:00:09.4]} 34. fxg3 {[%clk 0:00:21.4]}
34... Rg7 {[%clk 0:00:08.5]} 35. R8e4 {[%clk 0:00:17]} 35... Qb2 {[%clk
0:00:08.1]} 36. R1e2 {[%clk 0:00:16.3]} 36... Qa1+ {[%clk 0:00:07.8]} 37. Kg2
{[%clk 0:00:16.8]} 37... b4 {[%clk 0:00:08.1]} 38. Re5 {[%clk 0:00:15.8]} 38...
a4 {[%clk 0:00:07.8]} 39. R5e4 {[%clk 0:00:15.4]} 39... b3 {[%clk 0:00:07.5]}
40. axb3 {[%clk 0:00:15.1]} 40... a3 {[%clk 0:00:07.9]} 41. Ra4 {[%clk
0:00:11.2]} 41... Qc1 {[%clk 0:00:04.8]} 42. b4 {[%clk 0:00:09.2]} 42... Qc4
{[%clk 0:00:03.5]} 43. Rxa3 {[%clk 0:00:07.7]} 43... Qxb4 {[%clk 0:00:03.7]} 44.
Rae3 {[%clk 0:00:07.7]} 44... Qc4 {[%clk 0:00:03.9]} 45. Re4 {[%clk 0:00:07]}
45... Qc5 {[%clk 0:00:03.4]} 46. Re6 {[%clk 0:00:06.8]} 46... Qc4 {[%clk
0:00:02.7]} 47. Re7 {[%clk 0:00:05.8]} 47... Qd4 {[%clk 0:00:02.8]} 48. R7e6
{[%clk 0:00:05.3]} 48... Qa1 {[%clk 0:00:02.2]} 49. R6e5 {[%clk 0:00:05.2]}
49... Qd4 {[%clk 0:00:02.5]} 50. Qf6 {[%clk 0:00:05.2]} 50... Qa1 {[%clk
0:00:02.5]} 51. Qf3 {[%clk 0:00:04.4]} 51... Qd4 {[%clk 0:00:02.5]} 52. Re7
{[%clk 0:00:04.7]} 52... Qa1 {[%clk 0:00:02.9]} 53. Rxg7 {[%clk 0:00:04.2]}
53... Qxg7 {[%clk 0:00:03.3]} 54. Re4 {[%clk 0:00:04.3]} 54... Qa1 {[%clk
0:00:03.6]} 55. Re2 {[%clk 0:00:04.3]} 55... Qg7 {[%clk 0:00:03.5]} 56. h4
{[%clk 0:00:04.8]} 56... Qa1 {[%clk 0:00:03.8]} 57. Kh3 {[%clk 0:00:04.7]} 57...
Qg7 {[%clk 0:00:04.2]} 58. g4 {[%clk 0:00:05.2]} 58... Qd7 {[%clk 0:00:04.3]}
59. h5 {[%clk 0:00:04.4]} 59... Qg7 {[%clk 0:00:04.5]} 60. Re3 {[%clk 0:00:04]}
60... Qd7 {[%clk 0:00:03.8]} 61. Qe2 {[%clk 0:00:04.4]} 61... Qg7 {[%clk
0:00:03.9]} 62. Re7 {[%clk 0:00:04.5]} 62... Qf6 {[%clk 0:00:03.7]} 63. Re6
{[%clk 0:00:04.7]} 63... Qg7 {[%clk 0:00:03.7]} 64. h6 {[%clk 0:00:04.8]} 64...
Qc3+ {[%clk 0:00:03.8]} 65. Re3 {[%clk 0:00:04.7]} 65... Qd4 {[%clk 0:00:04]}
66. Re4 {[%clk 0:00:03.4]} 66... Qc3+ {[%clk 0:00:04]} 67. Kh2 {[%clk
0:00:03.6]} 67... Qc7+ {[%clk 0:00:03.6]} 68. Kh3 {[%clk 0:00:03.1]} 68... Qc3+
{[%clk 0:00:04]} 69. Re3 {[%clk 0:00:03.5]} 69... Qc6 {[%clk 0:00:04]} 70. Re4
{[%clk 0:00:02.2]} 70... Qxh6+ {[%clk 0:00:03.8]} 71. Kg2 {[%clk 0:00:02.5]}
71... Qg7 {[%clk 0:00:04.4]} 72. Qf3 {[%clk 0:00:02.7]} 72... Qg6 {[%clk
0:00:04.7]} 73. Qc3+ {[%clk 0:00:02.1]} 73... Qg7 {[%clk 0:00:05.2]} 74. Qxg7+
{[%clk 0:00:02.3]} 74... Kxg7 {[%clk 0:00:05.2]} 75. Kg3 {[%clk 0:00:03.2]}
75... Kg6 {[%clk 0:00:05.7]} 76. Re5 {[%clk 0:00:03.4]} 76... Kg7 {[%clk
0:00:06.1]} 77. Re6 {[%clk 0:00:01.4]} 77... Rf8 {[%clk 0:00:05.4]} 78. Re3
{[%clk 0:00:02.3]} 78... Rf7 {[%clk 0:00:05.6]} 79. Rf3 {[%clk 0:00:03.2]} 79...
Rc7 {[%clk 0:00:05.6]} 80. Rf4 {[%clk 0:00:03.5]} 80... Rf7 {[%clk 0:00:06.1]}
81. Rf3 {[%clk 0:00:04.4]} 81... Rxf3+ {[%clk 0:00:05.7]} 82. Kxf3 {[%clk
0:00:05.3]} 82... Kf6 {[%clk 0:00:06.6]} 83. Kf4 {[%clk 0:00:06.2]} 83... Kg6
{[%clk 0:00:07]} 84. g5 {[%clk 0:00:06]} 84... h6 {[%clk 0:00:07]} 85. gxh6
{[%clk 0:00:06.9]} 85... Kxh6 {[%clk 0:00:07.6]} 1/2-1/2

[Event "*** SCC Grand Prix: Titled Tuesday Blitz"]
[Site "Chess.com"]
[Date "2020.09.29"]
[Round "3"]
[White "eightbyeightchess"]
[Black "Aygehovit1992"]
[Result "0-1"]
[WhiteElo "2406"]
[BlackElo "2647"]
[TimeControl "180+1"]
[EndTime "10:21:36 PDT"]
[Termination "Aygehovit1992 won by resignation"]

1. e4 {[%clk 0:03:00.9]} 1... d6 {[%clk 0:03:00.9]} 2. d4 {[%clk 0:03:00.3]}
2... Nf6 {[%clk 0:03:01.5]} 3. Nc3 {[%clk 0:03:00.3]} 3... g6 {[%clk 0:03:01.5]}
4. f4 {[%clk 0:03:00.3]} 4... Bg7 {[%clk 0:03:01.6]} 5. Nf3 {[%clk 0:03:00.7]}
5... O-O {[%clk 0:03:02.2]} 6. Bd3 {[%clk 0:03:00.5]} 6... Nc6 {[%clk 0:03:02]}
7. e5 {[%clk 0:03:00.2]} 7... dxe5 {[%clk 0:03:01.8]} 8. dxe5 {[%clk 0:02:57.8]}
8... Nd5 {[%clk 0:03:00.8]} 9. O-O {[%clk 0:02:57.3]} 9... Nxc3 {[%clk
0:02:53.3]} 10. bxc3 {[%clk 0:02:58.2]} 10... Qd5 {[%clk 0:02:48]} 11. Ba3
{[%clk 0:02:43.2]} 11... Qa5 {[%clk 0:02:42.9]} 12. Bb2 {[%clk 0:02:40.4]} 12...
Qb6+ {[%clk 0:02:41.9]} 0-1

[Event "*** SCC Grand Prix: Titled Tuesday Blitz"]
[Site "Chess.com"]
[Date "2020.09.29"]
[Round "3"]
[White "alexrustemov"]
[Black "MashaFromRussia"]
[Result "1/2-1/2"]
[WhiteElo "2732"]
[BlackElo "2408"]
[TimeControl "180+1"]
[EndTime "10:22:53 PDT"]
[Termination "Game drawn by repetition"]

1. d4 {[%clk 0:03:00.9]} 1... Nf6 {[%clk 0:02:59.7]} 2. Bg5 {[%clk 0:02:59.4]}
2... c5 {[%clk 0:02:58.7]} 3. d5 {[%clk 0:02:56.7]} 3... Qb6 {[%clk 0:02:54.5]}
4. Nc3 {[%clk 0:02:56.2]} 4... Qxb2 {[%clk 0:02:53.6]} 5. Bd2 {[%clk 0:02:55.9]}
5... Qb6 {[%clk 0:02:53.7]} 6. e4 {[%clk 0:02:55.5]} 6... d6 {[%clk 0:02:53.5]}
7. Nf3 {[%clk 0:02:53.9]} 7... Nbd7 {[%clk 0:02:54.1]} 8. Bb5 {[%clk 0:02:48.5]}
8... a6 {[%clk 0:02:47.1]} 9. Bxd7+ {[%clk 0:02:47.3]} 9... Nxd7 {[%clk
0:02:46.8]} 10. O-O {[%clk 0:02:42.1]} 10... g6 {[%clk 0:02:41.8]} 11. Rb1
{[%clk 0:02:39.8]} 11... Qc7 {[%clk 0:02:39.1]} 12. a4 {[%clk 0:02:38.4]} 12...
Bg7 {[%clk 0:02:36.1]} 13. Qe2 {[%clk 0:02:29.2]} 13... O-O {[%clk 0:02:35.6]}
14. h3 {[%clk 0:02:12]} 14... Rb8 {[%clk 0:02:31.3]} 15. Qc4 {[%clk 0:02:10.4]}
15... Nb6 {[%clk 0:02:21.9]} 16. Qb3 {[%clk 0:02:09.3]} 16... Nd7 {[%clk
0:02:22.1]} 17. Qc4 {[%clk 0:02:03.7]} 17... Nb6 {[%clk 0:02:21.5]} 18. Qb3
{[%clk 0:01:59.8]} 18... Nd7 {[%clk 0:02:21.8]} 19. Qc4 {[%clk 0:01:59.1]}
1/2-1/2

[Event "*** SCC Grand Prix: Titled Tuesday Blitz"]
[Site "Chess.com"]
[Date "2020.09.29"]
[Round "3"]
[White "kidagent"]
[Black "smshk35"]
[Result "1-0"]
[WhiteElo "2284"]
[BlackElo "2466"]
[TimeControl "180+1"]
[EndTime "10:22:58 PDT"]
[Termination "kidagent won by resignation"]

1. e4 {[%clk 0:03:00.9]} 1... c5 {[%clk 0:02:59.7]} 2. Nf3 {[%clk 0:03:00.7]}
2... e6 {[%clk 0:02:59.9]} 3. d4 {[%clk 0:03:00.9]} 3... cxd4 {[%clk 0:03:00.8]}
4. Nxd4 {[%clk 0:03:01.3]} 4... a6 {[%clk 0:03:01.3]} 5. Nc3 {[%clk 0:03:00.9]}
5... b5 {[%clk 0:03:01.4]} 6. a3 {[%clk 0:03:00.4]} 6... Bb7 {[%clk 0:03:00.9]}
7. g3 {[%clk 0:03:00.9]} 7... Nc6 {[%clk 0:03:00.9]} 8. Nde2 {[%clk 0:03:00]}
8... Nf6 {[%clk 0:02:59.9]} 9. Bg2 {[%clk 0:03:00.1]} 9... Bc5 {[%clk
0:03:00.1]} 10. O-O {[%clk 0:03:00.3]} 10... Ng4 {[%clk 0:03:00.2]} 11. Nf4
{[%clk 0:02:51]} 11... Qb6 {[%clk 0:02:55.7]} 12. Qxg4 {[%clk 0:02:48.8]} 12...
g6 {[%clk 0:02:53.2]} 13. Nd3 {[%clk 0:02:48.1]} 13... Be7 {[%clk 0:02:52.1]}
14. Be3 {[%clk 0:02:47.3]} 14... Qc7 {[%clk 0:02:50.6]} 15. f4 {[%clk
0:02:45.3]} 15... h5 {[%clk 0:02:50.6]} 16. Qe2 {[%clk 0:02:43.3]} 16... Na5
{[%clk 0:02:46.7]} 17. Bd4 {[%clk 0:02:20.9]} 17... f6 {[%clk 0:02:38.8]} 18. e5
{[%clk 0:02:16.9]} 18... f5 {[%clk 0:02:37.8]} 19. Bxb7 {[%clk 0:02:13.5]} 19...
Qxb7 {[%clk 0:02:38]} 20. Qg2 {[%clk 0:02:13.2]} 20... Nc6 {[%clk 0:02:38.2]}
21. Bc5 {[%clk 0:02:11.2]} 21... h4 {[%clk 0:02:31]} 22. Bxe7 {[%clk 0:02:08.9]}
22... Kxe7 {[%clk 0:02:31]} 23. gxh4 {[%clk 0:02:03.9]} 23... Rxh4 {[%clk
0:02:29.6]} 24. Qg5+ {[%clk 0:02:03.1]} 24... Kf7 {[%clk 0:02:28.4]} 25. Qxh4
{[%clk 0:02:03.1]} 25... Kg7 {[%clk 0:02:27.8]} 1-0

[Event "*** SCC Grand Prix: Titled Tuesday Blitz"]
[Site "Chess.com"]
[Date "2020.09.29"]
[Round "3"]
[White "parintele_chess"]
[Black "PauloCesarCosta_sad"]
[Result "1/2-1/2"]
[WhiteElo "2147"]
[BlackElo "2300"]
[TimeControl "180+1"]
[EndTime "10:23:05 PDT"]
[Termination "Game drawn by agreement"]

1. c4 {[%clk 0:03:00.6]} 1... c5 {[%clk 0:02:59.3]} 2. g3 {[%clk 0:02:56.5]}
2... g6 {[%clk 0:02:58.1]} 3. Bg2 {[%clk 0:02:56.6]} 3... Bg7 {[%clk 0:02:58.6]}
4. Nc3 {[%clk 0:02:57]} 4... Nc6 {[%clk 0:02:57.9]} 5. a3 {[%clk 0:02:57.4]}
5... Nf6 {[%clk 0:02:56.2]} 6. Rb1 {[%clk 0:02:53.2]} 6... O-O {[%clk
0:02:55.3]} 7. b4 {[%clk 0:02:48.3]} 7... d6 {[%clk 0:02:45.6]} 8. Nf3 {[%clk
0:02:46.6]} 8... Bg4 {[%clk 0:02:39.3]} 9. O-O {[%clk 0:02:45.1]} 9... Qd7
{[%clk 0:02:36.4]} 10. Ng5 {[%clk 0:02:27.6]} 10... h6 {[%clk 0:02:32.3]} 11.
Nge4 {[%clk 0:02:26.2]} 11... Nxe4 {[%clk 0:02:29]} 12. Nxe4 {[%clk 0:02:26]}
12... cxb4 {[%clk 0:02:26.3]} 13. axb4 {[%clk 0:02:26.9]} 13... Bh3 {[%clk
0:02:21.7]} 14. d4 {[%clk 0:02:14.7]} 14... Bxg2 {[%clk 0:02:21.2]} 15. Kxg2
{[%clk 0:02:15.6]} 15... Nxd4 {[%clk 0:02:17.3]} 16. Bxh6 {[%clk 0:02:15.3]}
16... Bxh6 {[%clk 0:01:59]} 17. Qxd4 {[%clk 0:02:14.8]} 17... Bg7 {[%clk
0:01:55.8]} 1/2-1/2

[Event "*** SCC Grand Prix: Titled Tuesday Blitz"]
[Site "Chess.com"]
[Date "2020.09.29"]
[Round "3"]
[White "PawnEatingZombie"]
[Black "Gulkov_Igor"]
[Result "0-1"]
[WhiteElo "2228"]
[BlackElo "2432"]
[TimeControl "180+1"]
[EndTime "10:23:15 PDT"]
[Termination "Gulkov_Igor won by resignation"]

1. d4 {[%clk 0:03:00.9]} 1... Nf6 {[%clk 0:02:59.1]} 2. c4 {[%clk 0:03:01.3]}
2... e6 {[%clk 0:02:57.3]} 3. Nc3 {[%clk 0:03:01.3]} 3... Bb4 {[%clk 0:02:55.6]}
4. Qc2 {[%clk 0:03:01.8]} 4... O-O {[%clk 0:02:50.9]} 5. e4 {[%clk 0:03:01.2]}
5... d5 {[%clk 0:02:50]} 6. e5 {[%clk 0:03:01.4]} 6... Ne4 {[%clk 0:02:49.5]} 7.
Bd3 {[%clk 0:03:02]} 7... c5 {[%clk 0:02:49.1]} 8. Nf3 {[%clk 0:03:02.4]} 8...
cxd4 {[%clk 0:02:48.4]} 9. Nxd4 {[%clk 0:03:03.3]} 9... Nd7 {[%clk 0:02:44.6]}
10. Bf4 {[%clk 0:03:03.1]} 10... Ndc5 {[%clk 0:02:43.4]} 11. O-O {[%clk
0:02:58.2]} 11... Nxd3 {[%clk 0:02:26.9]} 12. Qxd3 {[%clk 0:02:56.1]} 12... Nc5
{[%clk 0:02:25.4]} 13. Qe3 {[%clk 0:02:21.6]} 13... dxc4 {[%clk 0:02:23.4]} 14.
Qg3 {[%clk 0:01:33.4]} 14... Qxd4 {[%clk 0:02:13.5]} 0-1

[Event "*** SCC Grand Prix: Titled Tuesday Blitz"]
[Site "Chess.com"]
[Date "2020.09.29"]
[Round "3"]
[White "aljado"]
[Black "bazar-wokzal"]
[Result "0-1"]
[WhiteElo "2061"]
[BlackElo "2459"]
[TimeControl "180+1"]
[EndTime "10:23:17 PDT"]
[Termination "bazar-wokzal won by resignation"]

1. e4 {[%clk 0:03:00.9]} 1... Nc6 {[%clk 0:02:59.3]} 2. d4 {[%clk 0:02:59.2]}
2... d5 {[%clk 0:02:59.2]} 3. e5 {[%clk 0:02:57.2]} 3... h5 {[%clk 0:02:58.8]}
4. Nf3 {[%clk 0:02:55.9]} 4... Bg4 {[%clk 0:02:58.9]} 5. c3 {[%clk 0:02:54.4]}
5... Qd7 {[%clk 0:02:58.3]} 6. h3 {[%clk 0:02:49.1]} 6... Bxf3 {[%clk
0:02:57.3]} 7. Qxf3 {[%clk 0:02:48.5]} 7... f6 {[%clk 0:02:55.5]} 8. exf6 {[%clk
0:02:38.4]} 8... gxf6 {[%clk 0:02:54.7]} 9. Bb5 {[%clk 0:02:32.7]} 9... O-O-O
{[%clk 0:02:49.9]} 10. Be3 {[%clk 0:02:29.5]} 10... Kb8 {[%clk 0:02:49.7]} 11.
Nd2 {[%clk 0:02:28.8]} 11... Nxd4 {[%clk 0:02:45.9]} 12. cxd4 {[%clk 0:02:07.2]}
12... Qxb5 {[%clk 0:02:45.4]} 13. a4 {[%clk 0:02:06.3]} 13... Qd3 {[%clk
0:02:35.6]} 14. Ra3 {[%clk 0:02:00.5]} 14... Qa6 {[%clk 0:02:34.7]} 15. b4
{[%clk 0:01:55.1]} 15... e5 {[%clk 0:02:31.3]} 16. b5 {[%clk 0:01:52.1]} 16...
Qb6 {[%clk 0:02:18.4]} 17. O-O {[%clk 0:01:43.1]} 17... Bxa3 {[%clk 0:02:12.9]}
0-1

[Event "*** SCC Grand Prix: Titled Tuesday Blitz"]
[Site "Chess.com"]
[Date "2020.09.29"]
[Round "3"]
[White "Riptide27"]
[Black "Alexsur1981"]
[Result "0-1"]
[WhiteElo "2516"]
[BlackElo "2751"]
[TimeControl "180+1"]
[EndTime "10:23:38 PDT"]
[Termination "Alexsur1981 won by resignation"]

1. e4 {[%clk 0:03:00.9]} 1... c5 {[%clk 0:02:59.7]} 2. Nf3 {[%clk 0:02:59.6]}
2... e6 {[%clk 0:03:00.2]} 3. d4 {[%clk 0:02:59.2]} 3... cxd4 {[%clk 0:03:01.1]}
4. Nxd4 {[%clk 0:03:00]} 4... Nf6 {[%clk 0:03:01.6]} 5. Nc3 {[%clk 0:02:59.4]}
5... Nc6 {[%clk 0:03:02.2]} 6. Ndb5 {[%clk 0:02:56.3]} 6... Bc5 {[%clk
0:03:01.8]} 7. Nd6+ {[%clk 0:02:52.9]} 7... Ke7 {[%clk 0:03:02]} 8. Nxc8+ {[%clk
0:02:52.3]} 8... Rxc8 {[%clk 0:03:02.9]} 9. Be2 {[%clk 0:02:52.3]} 9... Qc7
{[%clk 0:03:01]} 10. O-O {[%clk 0:02:44.7]} 10... a6 {[%clk 0:03:01.2]} 11. Bg5
{[%clk 0:02:38.1]} 11... h6 {[%clk 0:02:59.9]} 12. Bh4 {[%clk 0:02:37.5]} 12...
Bd6 {[%clk 0:03:00]} 13. Bg3 {[%clk 0:02:26.1]} 13... Bxg3 {[%clk 0:02:59.9]}
14. hxg3 {[%clk 0:02:25.3]} 14... h5 {[%clk 0:03:00.4]} 15. f4 {[%clk
0:02:06.3]} 15... Qb6+ {[%clk 0:02:57.2]} 16. Rf2 {[%clk 0:02:05.8]} 16... Qxb2
{[%clk 0:02:56]} 17. Rf3 {[%clk 0:01:43.9]} 17... Qb6+ {[%clk 0:02:48.3]} 18.
Rf2 {[%clk 0:01:43.7]} 18... Qc5 {[%clk 0:02:44.9]} 19. Qd2 {[%clk 0:01:31.6]}
19... Nb4 {[%clk 0:02:35.8]} 20. e5 {[%clk 0:01:31.4]} 20... Qxc3 {[%clk
0:02:34.5]} 21. exf6+ {[%clk 0:01:25.6]} 21... gxf6 {[%clk 0:02:35.4]} 22. Rd1
{[%clk 0:01:24.4]} 22... Qxd2 {[%clk 0:02:34.6]} 23. Rxd2 {[%clk 0:01:25.3]}
23... Nxa2 {[%clk 0:02:26.1]} 0-1